fUST/lending_fUST_20250514
["ID","MTS","AMOUNT","RATE_DAILY","PERIOD"]
[360971354,1747171852831,-400.0,0.0001452,2]
[360971355,1747171852841,-968.62,0.0001452,2]
[360971356,1747171852851,-2237.52,0.0001452,2]
[360971357,1747171852864,-400.0,0.0001452,2]
[360971358,1747171852874,-400.0,0.0001452,2]
[360971359,1747171852884,-400.0,0.0001452,2]
[360971360,1747171852893,-948.76,0.0001452,2]
[360971361,1747171852904,-12091.79,0.0001452,2]
[360971362,1747171852915,-330.14827395,0.0001452,2]
[360971363,1747171852925,-400.0,0.0001452,2]
[360971364,1747171853126,-3495.32,0.0001452,2]
[360971365,1747171853151,-400.0,0.0001452,2]
[360971366,1747171853161,-400.0,0.0001452,2]
[360971367,1747171853171,-4347.15,0.0001452,2]
[360971368,1747171853181,-1362.33,0.0001452,2]
[360971369,1747171853191,-789.92,0.0001452,2]
[360971370,1747171853201,-400.0,0.0001452,2]
[360971371,1747171853210,-907.61,0.0001452,2]
[360971372,1747171853220,-1962.79,0.0001452,2]
[360971373,1747171853230,-400.0,0.0001452,2]
[360971374,1747171853240,-2729.47,0.0001452,2]
[360971375,1747171853249,-400.0,0.0001452,2]
[360971376,1747171853259,-400.0,0.0001452,2]
[360971377,1747171853269,-657.59,0.0001452,2]
[360971378,1747171853278,-7706.43,0.0001452,2]
[360971379,1747171853288,-400.0,0.0001452,2]
[360971380,1747171853297,-1074.08,0.0001452,2]
[360971381,1747171853307,-2264.38,0.0001452,2]
[360971382,1747171853317,-400.0,0.0001452,2]
[360971383,1747171853327,-151.0,0.00014537,2]
[360971384,1747171853336,-500.0,0.00014573,2]
[360971385,1747171853345,-500.0,0.00014661,2]
[360971386,1747171853355,-500.0,0.00014681,2]
[360971387,1747171853365,-500.0,0.00014681,2]
[360971388,1747171853375,-500.0,0.00014681,2]
[360971389,1747171853385,-500.0,0.00014681,2]
[360971390,1747171853394,-500.0,0.00014681,2]
[360971391,1747171853405,-2000.0,0.000147,2]
[360971392,1747171853416,-206.0,0.0001477,2]
[360971393,1747171853426,-500.0,0.00014773,2]
[360971394,1747171853436,-3069.63,0.00014793,2]
[360971395,1747171853445,-1733.83,0.00014793,2]
[360971396,1747171853456,-294.030692,0.00014794,2]
[360971397,1747171853465,-151.0,0.00014794,2]
[360971398,1747171853475,-151.0,0.00014794,2]
[360971399,1747171853485,-151.0,0.00014794,2]
[360971400,1747171853494,-151.0,0.00014794,2]
[360971401,1747171853504,-400.0,0.00014794,2]
[360971402,1747171853514,-400.0,0.00014794,2]
[360971403,1747171853524,-400.0,0.00014794,2]
[360971404,1747171853534,-400.0,0.00014794,2]
[360971405,1747171853544,-400.0,0.00014794,2]
[360971406,1747171853553,-400.0,0.00014794,2]
[360971407,1747171853563,-400.0,0.00014794,2]
[360971408,1747171853572,-400.0,0.00014794,2]
[360971409,1747171853582,-702.95,0.00014794,2]
[360971410,1747171853592,-400.0,0.00014794,2]
[360971411,1747171853601,-400.0,0.00014794,2]
[360971412,1747171853611,-400.0,0.00014794,2]
[360971413,1747171853622,-654.93,0.00014794,2]
[360971414,1747171853632,-400.0,0.00014794,2]
[360971415,1747171853642,-400.0,0.00014794,2]
[360971416,1747171853652,-400.0,0.00014794,2]
[360971417,1747171853663,-400.0,0.00014794,2]
[360971418,1747171853672,-400.0,0.00014794,2]
[360971419,1747171853682,-400.0,0.00014794,2]
[360971420,1747171853692,-400.0,0.00014794,2]
[360971421,1747171853703,-439.25,0.00014794,2]
[360971422,1747171853714,-432.91,0.00014794,2]
[360971423,1747171853725,-400.0,0.00014794,2]
[360971424,1747171853736,-400.0,0.00014794,2]
[360971425,1747171853747,-847.75,0.00014794,2]
[360971426,1747171853758,-400.0,0.00014794,2]
[360971427,1747171853768,-400.0,0.00014794,2]
[360971428,1747171853779,-400.0,0.00014794,2]
[360971429,1747171853788,-656.64,0.00014794,2]
[360971430,1747171853798,-400.0,0.00014794,2]
[360971431,1747171853808,-400.0,0.00014794,2]
[360971432,1747171853818,-400.0,0.00014794,2]
[360971433,1747171853828,-400.0,0.00014794,2]
[360971434,1747171853838,-400.0,0.00014794,2]
[360971435,1747171853848,-400.0,0.00014794,2]
[360971436,1747171853862,-400.0,0.00014794,2]
[360971437,1747171853871,-446.11,0.00014794,2]
[360971438,1747171853881,-400.0,0.00014794,2]
[360971439,1747171853892,-400.0,0.00014794,2]
[360971440,1747171853902,-400.0,0.00014794,2]
[360971441,1747171853913,-400.0,0.00014794,2]
[360971442,1747171853923,-465.07,0.00014794,2]
[360971443,1747171853933,-2400.0,0.00014794,2]
[360971444,1747171853942,-548.45,0.00014794,2]
[360971445,1747171853952,-1210.12,0.00014794,2]
[360971446,1747171853962,-440.46,0.00014794,2]
[360971447,1747171853972,-400.0,0.00014794,2]
[360971448,1747171853981,-623.03,0.00014794,2]
[360971449,1747171853991,-400.0,0.00014794,2]
[360971450,1747171854001,-400.0,0.00014794,2]
[360971451,1747171854010,-400.0,0.00014794,2]
[360971452,1747171854020,-728.48,0.00014794,2]
[360971453,1747171854029,-400.0,0.00014794,2]
[360971454,1747171854039,-402.84,0.00014794,2]
[360971455,1747171854049,-400.0,0.00014794,2]
[360971456,1747171854059,-400.0,0.00014794,2]
[360971457,1747171854068,-400.0,0.00014794,2]
[360971458,1747171854078,-400.0,0.00014794,2]
[360971459,1747171854087,-400.0,0.00014794,2]
[360971460,1747171854097,-400.0,0.00014794,2]
[360971461,1747171854107,-835.13,0.00014794,2]
[360971462,1747171854116,-400.0,0.00014794,2]
[360971463,1747171854126,-400.0,0.00014794,2]
[360971464,1747171854135,-691.47,0.00014794,2]
[360971465,1747171854145,-400.0,0.00014794,2]
[360971466,1747171854154,-523.45,0.00014794,2]
[360971467,1747171854165,-969.04,0.00014794,2]
[360971468,1747171854174,-417.64,0.00014794,2]
[360971469,1747171854185,-509.63,0.00014794,2]
[360971470,1747171854195,-400.0,0.00014794,2]
[360971471,1747171854205,-665.56,0.00014794,2]
[360971472,1747171854215,-400.0,0.00014794,2]
[360971473,1747171854224,-400.0,0.00014794,2]
[360971474,1747171854234,-400.0,0.00014794,2]
[360971475,1747171854244,-400.0,0.00014794,2]
[360971476,1747171854255,-400.0,0.00014794,2]
[360971477,1747171854265,-400.0,0.00014794,2]
[360971478,1747171854275,-156.69418651,0.00014794,2]
[360971479,1747171854285,-581.28,0.00014794,2]
[360971480,1747171854295,-400.0,0.00014794,2]
[360971481,1747171854305,-964.08,0.00014794,2]
[360971482,1747171854315,-400.0,0.00014794,2]
[360971483,1747171854325,-400.0,0.00014794,2]
[360971484,1747171854334,-442.88,0.00014794,2]
[360971485,1747171854345,-400.0,0.00014794,2]
[360971486,1747171854354,-617.41,0.00014794,2]
[360971487,1747171854364,-400.0,0.00014794,2]
[360971488,1747171854374,-1387.69,0.00014794,2]
[360971489,1747171854384,-587.98,0.00014794,2]
[360971490,1747171854395,-400.0,0.00014794,2]
[360971491,1747171854405,-934.41,0.00014794,2]
[360971492,1747171854416,-400.0,0.00014794,2]
[360971493,1747171854426,-400.0,0.00014794,2]
[360971494,1747171854436,-455.37,0.00014794,2]
[360971495,1747171854445,-400.0,0.00014794,2]
[360971496,1747171854455,-715.7,0.00014794,2]
[360971497,1747171854464,-1050.1,0.00014794,2]
[360971498,1747171854475,-460.61,0.00014794,2]
[360971499,1747171854485,-400.0,0.00014794,2]
[360971500,1747171854494,-606.18,0.00014794,2]
[360971501,1747171854504,-1497.29,0.00014794,2]
[360971502,1747171854513,-977.91,0.00014794,2]
[360971503,1747171854523,-400.0,0.00014794,2]
[360971504,1747171854532,-400.0,0.00014794,2]
[360971505,1747171854541,-400.0,0.00014794,2]
[360971506,1747171854550,-400.0,0.00014794,2]
[360971507,1747171854560,-670.12,0.00014794,2]
[360971508,1747171854569,-400.0,0.00014794,2]
[360971509,1747171854579,-400.0,0.00014794,2]
[360971510,1747171854591,-400.0,0.00014794,2]
[360971511,1747171854601,-649.09,0.00014794,2]
[360971512,1747171854610,-400.0,0.00014794,2]
[360971513,1747171854620,-400.0,0.00014794,2]
[360971514,1747171854630,-400.0,0.00014794,2]
[360971515,1747171854640,-500.0,0.00014794,2]
[360971516,1747171854650,-400.0,0.00014794,2]
[360971517,1747171854659,-825.86,0.00014794,2]
[360971518,1747171854669,-594.55,0.00014794,2]
[360971519,1747171854680,-631.73,0.00014794,2]
[360971520,1747171854691,-400.63,0.00014794,2]
[360971521,1747171854701,-2082.85,0.00014794,2]
[360971522,1747171854711,-1700.28,0.00014794,2]
[360971523,1747171854722,-400.0,0.00014794,2]
[360971524,1747171854734,-404.66,0.00014794,2]
[360971525,1747171854744,-400.0,0.00014794,2]
[360971526,1747171854754,-400.0,0.00014794,2]
[360971527,1747171854763,-498.37,0.00014794,2]
[360971528,1747171854773,-508.09,0.00014794,2]
[360971529,1747171854782,-400.0,0.00014794,2]
[360971530,1747171854792,-1219.22,0.00014794,2]
[360971531,1747171854801,-400.0,0.00014794,2]
[360971532,1747171854811,-400.0,0.00014794,2]
[360971533,1747171854821,-400.0,0.00014794,2]
[360971534,1747171854831,-2779.5,0.00014794,2]
[360971535,1747171854840,-400.0,0.00014794,2]
[360971536,1747171854850,-400.0,0.00014794,2]
[360971537,1747171854862,-654.77,0.00014794,2]
[360971538,1747171854872,-400.0,0.00014794,2]
[360971539,1747171854881,-400.0,0.00014794,2]
[360971540,1747171854891,-1011.29,0.00014794,2]
[360971541,1747171854903,-400.0,0.00014794,2]
[360971542,1747171854914,-400.0,0.00014794,2]
[360971543,1747171854924,-400.0,0.00014794,2]
[360971544,1747171854936,-1757.96,0.00014794,2]
[360971545,1747171854947,-828.55,0.00014794,2]
[360971546,1747171854957,-639.16,0.00014794,2]
[360971547,1747171854967,-400.0,0.00014794,2]
[360971548,1747171854977,-910.85,0.00014794,2]
[360971549,1747171854987,-400.0,0.00014794,2]
[360971550,1747171854996,-1432.24,0.00014794,2]
[360971551,1747171855006,-400.0,0.00014794,2]
[360971552,1747171855016,-1271.55,0.00014794,2]
[360971553,1747171855026,-951.73,0.00014794,2]
[360971554,1747171855036,-1964.72,0.00014794,2]
[360971555,1747171855046,-1346.18,0.00014794,2]
[360971556,1747171855055,-280.98,0.00014794,2]
[360971557,1747171855066,-1807.95,0.00014794,2]
[360971558,1747171855076,-1872.93,0.00014794,2]
[360971559,1747171855086,-2038.91,0.00014794,2]
[360971560,1747171855095,-583.95,0.00014794,2]
[360971561,1747171855105,-400.0,0.00014794,2]
[360971562,1747171855115,-400.0,0.00014794,2]
[360971563,1747171855125,-444.52,0.00014794,2]
[360971564,1747171855134,-400.0,0.00014794,2]
[360971565,1747171855144,-777.75,0.00014794,2]
[360971566,1747171855154,-1133.72,0.00014794,2]
[360971567,1747171855165,-1278.45,0.00014794,2]
[360971568,1747171855174,-2383.74,0.00014794,2]
[360971569,1747171855184,-1367.7,0.00014794,2]
[360971570,1747171855194,-2669.62,0.00014794,2]
[360971571,1747171855203,-2642.98,0.00014794,2]
[360971572,1747171855213,-1343.88,0.00014794,2]
[360971573,1747171855223,-6469.5,0.00014794,2]
[360971574,1747171855233,-400.0,0.00014794,2]
[360971575,1747171855243,-400.0,0.00014794,2]
[360971576,1747171855253,-400.0,0.00014794,2]
[360971577,1747171855263,-1188.47,0.00014794,2]
[360971578,1747171855273,-400.0,0.00014794,2]
[360971579,1747171855282,-400.0,0.00014794,2]
[360971580,1747171855292,-1336.58,0.00014794,2]
[360971581,1747171855302,-400.0,0.00014794,2]
[360971582,1747171855311,-400.0,0.00014794,2]
[360971583,1747171855322,-400.0,0.00014794,2]
[360971584,1747171855331,-400.0,0.00014794,2]
[360971585,1747171855341,-400.0,0.00014794,2]
[360971586,1747171855350,-451.71,0.00014794,2]
[360971587,1747171855361,-400.0,0.00014794,2]
[360971588,1747171855370,-531.31,0.00014794,2]
[360971589,1747171855380,-443.98,0.00014794,2]
[360971590,1747171855390,-405.74,0.00014794,2]
[360971591,1747171855401,-400.0,0.00014794,2]
[360971592,1747171855411,-400.0,0.00014794,2]
[360971593,1747171855421,-1336.54,0.00014794,2]
[360971594,1747171855432,-400.0,0.00014794,2]
[360971595,1747171855442,-733.54,0.00014794,2]
[360971596,1747171855454,-602.94,0.00014794,2]
[360971597,1747171855464,-400.0,0.00014794,2]
[360971598,1747171855474,-1080.08,0.00014794,2]
[360971599,1747171855483,-420.67,0.00014794,2]
[360971600,1747171855494,-400.0,0.00014794,2]
[360971601,1747171855505,-693.78,0.00014794,2]
[360971602,1747171855514,-1431.64,0.00014794,2]
[360971603,1747171855524,-400.0,0.00014794,2]
[360971604,1747171855533,-400.0,0.00014794,2]
[360971605,1747171855543,-654.02,0.00014794,2]
[360971606,1747171855552,-1357.77,0.00014794,2]
[360971607,1747171855561,-1212.64,0.00014794,2]
[360971608,1747171855571,-400.0,0.00014794,2]
[360971609,1747171855580,-400.0,0.00014794,2]
[360971610,1747171855590,-2979.51,0.00014794,2]
[360971611,1747171855599,-400.0,0.00014794,2]
[360971612,1747171855609,-400.0,0.00014794,2]
[360971613,1747171855618,-791.3,0.00014794,2]
[360971614,1747171855697,-400.0,0.00014794,2]
[360971615,1747171855708,-6691.48,0.00014794,2]
[360971616,1747171855717,-400.0,0.00014794,2]
[360971617,1747171855727,-3240.36,0.00014794,2]
[360971618,1747171855736,-400.0,0.00014794,2]
[360971619,1747171855746,-796.34,0.00014794,2]
[360971620,1747171855755,-1457.87,0.00014794,2]
[360971621,1747171855764,-400.0,0.00014794,2]
[360971622,1747171855773,-1151.93,0.00014794,2]
[360971623,1747171855783,-1965.01,0.00014794,2]
[360971624,1747171855792,-575.28,0.00014794,2]
[360971625,1747171855802,-571.86,0.00014794,2]
[360971626,1747171855811,-400.0,0.00014794,2]
[360971627,1747171855820,-1151.88,0.00014794,2]
[360971628,1747171855829,-523.95,0.00014794,2]
[360971629,1747171855839,-780.64,0.00014794,2]
[360971630,1747171855849,-2254.02,0.00014794,2]
[360971631,1747171855860,-885.61,0.00014794,2]
[360971632,1747171855870,-400.0,0.00014794,2]
[360971633,1747171855879,-1896.51,0.00014794,2]
[360971634,1747171855889,-1446.73,0.00014794,2]
[360971635,1747171855899,-400.0,0.00014794,2]
[360971636,1747171855908,-400.0,0.00014794,2]
[360971637,1747171855918,-400.0,0.00014794,2]
[360971638,1747171855927,-400.0,0.00014794,2]
[360971639,1747171855937,-2969.24,0.00014794,2]
[360971640,1747171855946,-761.95,0.00014794,2]
[360971641,1747171855955,-3596.39,0.00014794,2]
[360971642,1747171855965,-2929.92,0.00014794,2]
[360971643,1747171855974,-629.36,0.00014794,2]
[360971644,1747171855984,-400.0,0.00014794,2]
[360971645,1747171855993,-6035.7,0.00014794,2]
[360971646,1747171856003,-2648.74,0.00014794,2]
[360971647,1747171856012,-400.0,0.00014794,2]
[360971648,1747171856021,-720.33,0.00014794,2]
[360971649,1747171856030,-1698.59,0.00014794,2]
[360971650,1747171856039,-904.66,0.00014794,2]
[360971651,1747171856048,-458.91,0.00014794,2]
[360971652,1747171856058,-488.71,0.00014794,2]
[360971653,1747171856067,-4244.97,0.00014794,2]
[360971654,1747171856076,-400.0,0.00014794,2]
[360971655,1747171856085,-408.43,0.00014794,2]
[360971656,1747171856094,-424.56,0.00014794,2]
[360971657,1747171856104,-400.0,0.00014794,2]
[360971658,1747171856113,-832.4,0.00014794,2]
[360971659,1747171856122,-400.0,0.00014794,2]
[360971660,1747171856132,-687.37,0.00014794,2]
[360971661,1747171856141,-593.97,0.00014794,2]
[360971662,1747171856150,-933.65,0.00014794,2]
[360971663,1747171856160,-7895.42,0.00014794,2]
[360971664,1747171856169,-729.98,0.00014794,2]
[360971665,1747171856179,-781.28,0.00014794,2]
[360971666,1747171856188,-508.61,0.00014794,2]
[360971667,1747171856197,-1748.5,0.00014794,2]
[360971668,1747171856207,-400.0,0.00014794,2]
[360971669,1747171856216,-968.62,0.00014794,2]
[360971670,1747171856225,-2237.52,0.00014794,2]
[360971671,1747171856234,-400.0,0.00014794,2]
[360971672,1747171856243,-400.0,0.00014794,2]
[360971673,1747171856252,-400.0,0.00014794,2]
[360971674,1747171856261,-948.76,0.00014794,2]
[360971675,1747171856271,-12091.79,0.00014794,2]
[360971676,1747171856279,-400.0,0.00014794,2]
[360971677,1747171856288,-3495.32,0.00014794,2]
[360971678,1747171856297,-400.0,0.00014794,2]
[360971679,1747171856306,-493.61713983,0.00014794,2]
[360971680,1747171856315,-4347.15,0.00014794,2]
[360971681,1747171856325,-1362.33,0.00014794,2]
[360971682,1747171856334,-789.92,0.00014794,2]
[360971683,1747171856343,-400.0,0.00014794,2]
[360971684,1747171856352,-907.61,0.00014794,2]
[360971685,1747171856361,-1962.79,0.00014794,2]
[360971686,1747171856371,-400.0,0.00014794,2]
[360971687,1747171856380,-2729.47,0.00014794,2]
[360971688,1747171856389,-400.0,0.00014794,2]
[360971689,1747171856398,-400.0,0.00014794,2]
[360971690,1747171856408,-7706.43,0.00014794,2]
[360971691,1747171856418,-657.59,0.00014794,2]
[360971692,1747171856428,-400.0,0.00014794,2]
[360971693,1747171856438,-1074.08,0.00014794,2]
[360971694,1747171856447,-2264.38,0.00014794,2]
[360971695,1747171856457,-400.0,0.00014794,2]
[360971696,1747171856466,-215.0738,0.0001481,2]
[360971697,1747171856475,-800.0536108,0.00014825,2]
[360971698,1747171856484,-1193.89,0.00014843,2]
[360971699,1747171856494,-500.0,0.00014862,2]
[360971700,1747171856503,-500.0,0.00014862,2]
[360971701,1747171856512,-206.0,0.0001489,2]
[360971702,1747171856522,-151.0,0.000149,2]
[360971703,1747171856531,-437.81825004,0.000149,2]
[360971704,1747171856540,-437.81825003,0.000149,2]
[360971705,1747171856550,-165.59085613,0.000149,2]
[360971706,1747171856559,-437.81825003,0.000149,2]
[360971707,1747171856568,-3715.92110285,0.0001491,2]
[360971708,1747171856578,-500.0,0.00014951,2]
[360971709,1747171856587,-500.0,0.00014951,2]
[360971710,1747171856595,-18703.07790945,0.00014969,2]
[360971711,1747171856605,-1201.57008039,0.00015,2]
[360971712,1747171856614,-500.0,0.00015,2]
[360971713,1747171856623,-1000.0,0.00015,15]
[360971714,1747171856632,-10000.0,0.00015,2]
[360971715,1747171856641,-10000.0,0.00015,2]
[360971716,1747171856650,-3500.0,0.00015,2]
[360971717,1747171856660,-23624.8726818,0.00015,7]
[360971718,1747171856671,-212.19047112,0.00015,7]
[360971719,1747171856681,-160.0,0.00015,2]
[360971720,1747171856691,-500.0,0.00015,2]
[360971721,1747171856704,-3069.63,0.00015067,2]
[360971722,1747171856720,-1733.83,0.00015067,2]
[360971723,1747171856729,-1997.4,0.00015068,2]
[360971724,1747171856739,-151.0,0.00015068,2]
[360971725,1747171856749,-151.0,0.00015068,2]
[360971726,1747171856758,-221.491884,0.00015068,2]
[360971727,1747171856767,-400.0,0.00015068,2]
[360971728,1747171856777,-400.0,0.00015068,2]
[360971729,1747171856786,-400.0,0.00015068,2]
[360971730,1747171856795,-400.0,0.00015068,2]
[360971731,1747171856805,-400.0,0.00015068,2]
[360971732,1747171856815,-400.0,0.00015068,2]
[360971733,1747171856825,-400.0,0.00015068,2]
[360971734,1747171856834,-400.0,0.00015068,2]
[360971735,1747171856844,-702.95,0.00015068,2]
[360971736,1747171856854,-400.0,0.00015068,2]
[360971737,1747171856871,-316.32386749,0.00015068,2]
[360971738,1747171856881,-400.0,0.00015068,2]
[360971739,1747171856890,-654.93,0.00015068,2]
[360971740,1747171856900,-400.0,0.00015068,2]
[360971741,1747171856909,-400.0,0.00015068,2]
[360971742,1747171856919,-400.0,0.00015068,2]
[360971743,1747171856928,-400.0,0.00015068,2]
[360971744,1747171856938,-400.0,0.00015068,2]
[360971745,1747171856947,-400.0,0.00015068,2]
[360971746,1747171856956,-400.0,0.00015068,2]
[360971747,1747171856966,-439.25,0.00015068,2]
[360971748,1747171856975,-432.91,0.00015068,2]
[360971749,1747171856984,-400.0,0.00015068,2]
[360971750,1747171856994,-400.0,0.00015068,2]
[360971751,1747171857003,-847.75,0.00015068,2]
[360971752,1747171857012,-409.55992518,0.00015068,2]
[360971753,1747171857023,-400.0,0.00015068,2]
[360971754,1747171857033,-400.0,0.00015068,2]
[360971755,1747171857043,-656.64,0.00015068,2]
[360971756,1747171857053,-400.0,0.00015068,2]
[360971757,1747171857062,-400.0,0.00015068,2]
[360971758,1747171857071,-400.0,0.00015068,2]
[360971759,1747171857080,-400.0,0.00015068,2]
[360971760,1747171857091,-400.0,0.00015068,2]
[360971761,1747171857100,-400.0,0.00015068,2]
[360971762,1747171857110,-400.0,0.00015068,2]
[360971763,1747171857119,-446.11,0.00015068,2]
[360971764,1747171857128,-400.0,0.00015068,2]
[360971765,1747171857139,-400.0,0.00015068,2]
[360971766,1747171857148,-400.0,0.00015068,2]
[360971767,1747171857158,-400.0,0.00015068,2]
[360971768,1747171857168,-465.07,0.00015068,2]
[360971769,1747171857177,-548.45,0.00015068,2]
[360971770,1747171857187,-1210.12,0.00015068,2]
[360971771,1747171857196,-440.46,0.00015068,2]
[360971772,1747171857206,-400.0,0.00015068,2]
[360971773,1747171857215,-623.03,0.00015068,2]
[360971774,1747171857226,-400.0,0.00015068,2]
[360971775,1747171857235,-400.0,0.00015068,2]
[360971776,1747171857244,-400.0,0.00015068,2]
[360971777,1747171857254,-728.48,0.00015068,2]
[360971778,1747171857263,-400.0,0.00015068,2]
[360971779,1747171857272,-402.84,0.00015068,2]
[360971780,1747171857281,-400.0,0.00015068,2]
[360971781,1747171857291,-400.0,0.00015068,2]
[360971782,1747171857300,-400.0,0.00015068,2]
[360971783,1747171857309,-400.0,0.00015068,2]
[360971784,1747171857319,-400.0,0.00015068,2]
[360971785,1747171857328,-400.0,0.00015068,2]
[360971786,1747171857338,-835.13,0.00015068,2]
[360971787,1747171857347,-400.0,0.00015068,2]
[360971788,1747171857357,-400.0,0.00015068,2]
[360971789,1747171857366,-691.47,0.00015068,2]
[360971790,1747171857375,-400.0,0.00015068,2]
[360971791,1747171857384,-523.45,0.00015068,2]
[360971792,1747171857394,-969.04,0.00015068,2]
[360971793,1747171857404,-417.64,0.00015068,2]
[360971794,1747171857413,-400.0,0.00015068,2]
[360971795,1747171857424,-509.63,0.00015068,2]
[360971796,1747171857435,-665.56,0.00015068,2]
[360971797,1747171857445,-400.0,0.00015068,2]
[360971798,1747171857455,-400.0,0.00015068,2]
[360971799,1747171857464,-400.0,0.00015068,2]
[360971800,1747171857475,-400.0,0.00015068,2]
[360971801,1747171857485,-400.0,0.00015068,2]
[360971802,1747171857494,-400.0,0.00015068,2]
[360971803,1747171857504,-581.28,0.00015068,2]
[360971804,1747171857514,-400.0,0.00015068,2]
[360971805,1747171857524,-964.08,0.00015068,2]
[360971806,1747171857533,-400.0,0.00015068,2]
[360971807,1747171857543,-400.0,0.00015068,2]
[360971808,1747171857552,-442.88,0.00015068,2]
[360971809,1747171857561,-400.0,0.00015068,2]
[360971810,1747171857571,-617.41,0.00015068,2]
[360971811,1747171857580,-400.0,0.00015068,2]
[360971812,1747171857589,-1387.69,0.00015068,2]
[360971813,1747171857598,-587.98,0.00015068,2]
[360971814,1747171857608,-400.0,0.00015068,2]
[360971815,1747171857618,-934.41,0.00015068,2]
[360971816,1747171857627,-400.0,0.00015068,2]
[360971817,1747171857637,-400.0,0.00015068,2]
[360971818,1747171857646,-455.37,0.00015068,2]
[360971819,1747171857655,-400.0,0.00015068,2]
[360971820,1747171857665,-715.7,0.00015068,2]
[360971821,1747171857674,-1050.1,0.00015068,2]
[360971822,1747171857684,-460.61,0.00015068,2]
[360971823,1747171857693,-400.0,0.00015068,2]
[360971824,1747171857703,-606.18,0.00015068,2]
[360971825,1747171857712,-1497.29,0.00015068,2]
[360971826,1747171857722,-977.91,0.00015068,2]
[360971827,1747171857731,-400.0,0.00015068,2]
[360971828,1747171857741,-400.0,0.00015068,2]
[360971829,1747171857751,-400.0,0.00015068,2]
[360971830,1747171857761,-400.0,0.00015068,2]
[360971831,1747171857770,-670.12,0.00015068,2]
[360971832,1747171857780,-400.0,0.00015068,2]
[360971833,1747171857789,-400.0,0.00015068,2]
[360971834,1747171857799,-400.0,0.00015068,2]
[360971835,1747171857808,-649.09,0.00015068,2]
[360971836,1747171857818,-400.0,0.00015068,2]
[360971837,1747171857828,-400.0,0.00015068,2]
[360971838,1747171857838,-400.0,0.00015068,2]
[360971839,1747171857848,-500.0,0.00015068,2]
[360971840,1747171857860,-400.0,0.00015068,2]
[360971841,1747171857869,-825.86,0.00015068,2]
[360971842,1747171857879,-594.55,0.00015068,2]
[360971843,1747171857888,-631.73,0.00015068,2]
[360971844,1747171857898,-400.63,0.00015068,2]
[360971845,1747171857908,-2082.85,0.00015068,2]
[360971846,1747171857918,-1700.28,0.00015068,2]
[360971847,1747171857929,-400.0,0.00015068,2]
[360971848,1747171857938,-404.66,0.00015068,2]
[360971849,1747171857948,-400.0,0.00015068,2]
[360971850,1747171857958,-400.0,0.00015068,2]
[360971851,1747171857967,-498.37,0.00015068,2]
[360971852,1747171857978,-508.09,0.00015068,2]
[360971853,1747171857988,-400.0,0.00015068,2]